fUSD/lending_fUSD_20260529
["ID","MTS","AMOUNT","RATE_DAILY","PERIOD"]
[423331295,1780059039000,-25000.0,0.000149,3]
[423331289,1780059039000,-153.51,0.00014089,2]
[423331297,1780059039000,-168.0,0.000149,2]
[423331293,1780059039000,-166.66,0.00014384,2]
[423331287,1780059039000,-166.66,0.00013973,2]
[423331290,1780059039000,-166.66,0.0001411,2]
[423331300,1780059039000,-500.0,0.00014999,2]
[423331296,1780059039000,-10000.0,0.000149,2]
[423331310,1780059039000,-500.0,0.00014999,2]
[423331313,1780059039000,-500.0,0.00014999,2]
[423331302,1780059039000,-500.0,0.00014999,2]
[423331303,1780059039000,-500.0,0.00014999,2]
[423331299,1780059039000,-150.0,0.00014985,2]
[423331305,1780059039000,-500.0,0.00014999,2]
[423331309,1780059039000,-500.0,0.00014999,2]
[423331304,1780059039000,-500.0,0.00014999,2]
[423331308,1780059039000,-500.0,0.00014999,2]
[423331307,1780059039000,-500.0,0.00014999,2]
[423331306,1780059039000,-500.0,0.00014999,2]
[423331311,1780059039000,-500.0,0.00014999,2]
[423331288,1780059039000,-2000.0,0.00014041,2]
[423331323,1780059039000,-208.69055638,0.000155,2]
[423331322,1780059039000,-1600.0,0.00015486,2]
[423331301,1780059039000,-500.0,0.00014999,2]
[423331286,1780059039000,-153.51,0.00013967,2]
[423331273,1780059039000,-500.0,0.00013698,2]
[423331280,1780059039000,-166.66,0.00013699,2]
[423331321,1780059039000,-8940.53600162,0.00015423,2]
[423331258,1780059039000,-168.0,0.00013598,2]
[423331259,1780059039000,-33230.1787,0.00013598,2]
[423331261,1780059039000,-153.51,0.00013601,2]
[423331256,1780059039000,-153.51,0.00013479,2]
[423331257,1780059039000,-166.46,0.00013527,2]
[423331260,1780059039000,-2000.0,0.00013598,2]
[423331262,1780059039000,-500.0,0.00013698,2]
[423331263,1780059039000,-500.0,0.00013698,2]
[423331264,1780059039000,-500.0,0.00013698,2]
[423331267,1780059039000,-500.0,0.00013698,2]
[423331265,1780059039000,-500.0,0.00013698,2]
[423331266,1780059039000,-500.0,0.00013698,2]
[423331285,1780059039000,-1600.0,0.00013938,2]
[423331271,1780059039000,-502.13042756,0.00013698,2]
[423331272,1780059039000,-500.0,0.00013698,2]
[423331270,1780059039000,-500.0,0.00013698,2]
[423331268,1780059039000,-500.0,0.00013698,2]
[423331275,1780059039000,-500.0,0.00013698,2]
[423331283,1780059039000,-153.51,0.00013845,2]
[423331274,1780059039000,-500.0,0.00013698,2]
[423331278,1780059039000,-500.0,0.00013698,2]
[423331279,1780059039000,-200.0,0.00013699,2]
[423331284,1780059039000,-202.05,0.00013937,2]
[423331276,1780059039000,-500.0,0.00013698,2]
[423331277,1780059039000,-500.0,0.00013698,2]
[423331281,1780059039000,-153.51,0.00013723,2]
[423331282,1780059039000,-166.66,0.00013836,2]
[423331269,1780059039000,-500.0,0.00013698,2]
[423331315,1780059039000,-500.0,0.00014999,2]
[423331363,1780059039000,-403.0,0.0002,2]
[423331312,1780059039000,-500.0,0.00014999,2]
[423331351,1780059039000,-151.0,0.00018958,2]
[423331357,1780059039000,-168.0,0.00019178,2]
[423331353,1780059039000,-151.0,0.00018958,2]
[423331356,1780059039000,-168.0,0.00019178,2]
[423331355,1780059039000,-151.0,0.00018958,2]
[423331354,1780059039000,-151.0,0.00018958,2]
[423331362,1780059039000,-499.0,0.0002,2]
[423331379,1780059039000,-403.0,0.00021,2]
[423331358,1780059039000,-168.0,0.00019178,2]
[423331361,1780059039000,-365.0,0.0002,2]
[423331360,1780059039000,-744.0,0.0002,2]
[423331352,1780059039000,-151.0,0.00018958,2]
[423331375,1780059039000,-588.0,0.00021,2]
[423331347,1780059039000,-151.0,0.00018958,2]
[423331365,1780059039000,-313.0,0.0002,2]
[423331369,1780059039000,-2743.0,0.0002,2]
[423331366,1780059039000,-16125.0,0.0002,2]
[423331367,1780059039000,-163.0,0.0002,2]
[423331368,1780059039000,-456.0,0.0002,2]
[423331370,1780059039000,-463.0,0.0002,2]
[423331374,1780059039000,-175.38927966,0.00020731,2]
[423331372,1780059039000,-1891.9,0.00020381,2]
[423331373,1780059039000,-2000.0,0.00020628,2]
[423331371,1780059039000,-2452.44,0.0002,2]
[423331376,1780059039000,-744.0,0.00021,2]
[423331378,1780059039000,-499.0,0.00021,2]
[423331377,1780059039000,-365.0,0.00021,2]
[423331314,1780059039000,-500.0,0.00014999,2]
[423331364,1780059039000,-771.0,0.0002,2]
[423331343,1780059039000,-151.0,0.00018958,2]
[423331359,1780059039000,-588.0,0.0002,2]
[423331346,1780059039000,-151.0,0.00018958,2]
[423331344,1780059039000,-151.0,0.00018958,2]
[423331317,1780059039000,-500.0,0.00014999,2]
[423331318,1780059039000,-500.0,0.00014999,2]
[423331319,1780059039000,-224.3792433,0.00014999,2]
[423331320,1780059039000,-288.2,0.00015,2]
[423331324,1780059039000,-208.69055638,0.000157,2]
[423331326,1780059039000,-208.69055638,0.00016,2]
[423331327,1780059039000,-208.69055638,0.000161,2]
[423331330,1780059039000,-665.47,0.000168,2]
[423331333,1780059039000,-2000.0,0.00017825,2]
[423331336,1780059039000,-151.0,0.00018958,2]
[423331328,1780059039000,-1891.9,0.00016438,2]
[423331332,1780059039000,-1600.0,0.00017035,2]
[423331325,1780059039000,-208.69055638,0.000158,2]
[423331316,1780059039000,-500.0,0.00014999,2]
[423331335,1780059039000,-1600.0,0.00018584,2]
[423331329,1780059039000,-168.09,0.00016712,2]
[423331342,1780059039000,-151.0,0.00018958,2]
[423331341,1780059039000,-151.0,0.00018958,2]
[423331339,1780059039000,-151.0,0.00018958,2]
[423331337,1780059039000,-151.0,0.00018958,2]
[423331340,1780059039000,-151.0,0.00018958,2]
[423331345,1780059039000,-151.0,0.00018958,2]
[423331349,1780059039000,-151.0,0.00018958,2]
[423331348,1780059039000,-151.0,0.00018958,2]
[423331338,1780059039000,-151.0,0.00018958,2]
[423331331,1780059039000,-151.36,0.000168,2]
[423331334,1780059039000,-1891.9,0.0001841,2]
[423331350,1780059039000,-151.0,0.00018958,2]
[423331426,1780059040000,-499.0,0.00023,2]
[423331419,1780059040000,-168.09,0.00022603,2]
[423331418,1780059040000,-450.0,0.00022516,7]
[423331420,1780059040000,-4024.21240137,0.00022928,2]
[423331407,1780059040000,-365.0,0.00022,2]
[423331421,1780059040000,-4024.21240137,0.00022967,2]
[423331427,1780059040000,-403.0,0.00023,2]
[423331428,1780059040000,-771.0,0.00023,2]
[423331417,1780059040000,-1891.9,0.00022353,2]
[423331410,1780059040000,-771.0,0.00022,2]
[423331405,1780059040000,-588.0,0.00022,2]
[423331423,1780059040000,-588.0,0.00023,2]
[423331416,1780059040000,-341.45,0.00022,2]
[423331424,1780059040000,-744.0,0.00023,2]
[423331431,1780059040000,-456.0,0.00023,2]
[423331422,1780059040000,-2151.0,0.00023,2]
[423331434,1780059040000,-4024.21240137,0.00023007,2]
[423331432,1780059040000,-2743.0,0.00023,2]
[423331429,1780059040000,-313.0,0.00023,2]
[423331430,1780059040000,-163.0,0.00023,2]
[423331433,1780059040000,-463.0,0.00023,2]
[423331441,1780059040000,-4024.21240137,0.00023282,7]
[423331438,1780059040000,-4024.21240137,0.00023164,7]
[423331436,1780059040000,-4024.21240137,0.00023085,2]
[423331435,1780059040000,-4024.21240137,0.00023046,2]
[423331439,1780059040000,-4024.21240137,0.00023204,7]
[423331440,1780059040000,-4024.21240137,0.00023243,7]
[423331404,1780059040000,-745.62,0.00021918,2]
[423331425,1780059040000,-365.0,0.00023,2]
[423331411,1780059040000,-313.0,0.00022,2]
[423331382,1780059040000,-163.0,0.00021,2]
[423331408,1780059040000,-499.0,0.00022,2]
[423331437,1780059040000,-4024.21240137,0.00023125,7]
[423331383,1780059040000,-456.0,0.00021,2]
[423331385,1780059040000,-463.0,0.00021,2]
[423331386,1780059040000,-3549.0,0.00021041,2]
[423331381,1780059040000,-313.0,0.00021,2]
[423331380,1780059040000,-771.0,0.00021,2]
[423331387,1780059040000,-1356.0,0.00021041,2]
[423331384,1780059040000,-2743.0,0.00021,2]
[423331388,1780059040000,-1272.0,0.00021041,2]
[423331390,1780059040000,-150.0,0.00021041,2]
[423331400,1780059040000,-34211.8088414,0.0002161,2]
[423331401,1780059040000,-2452.44,0.00021779,2]
[423331391,1780059040000,-277.0,0.00021041,2]
[423331393,1780059040000,-150.353,0.00021041,2]
[423331392,1780059040000,-150.0,0.00021041,2]
[423331389,1780059040000,-1245.947,0.00021041,2]
[423331398,1780059040000,-481.77668734,0.0002151,2]
[423331395,1780059040000,-16611.65479482,0.0002151,2]
[423331397,1780059040000,-203.33101852,0.0002151,2]
[423331396,1780059040000,-600.75376358,0.0002151,2]
[423331394,1780059040000,-864.61,0.000214,7]
[423331399,1780059040000,-950259.2249339,0.0002161,2]
[423331402,1780059040000,-4400.0,0.000219,7]
[423331403,1780059040000,-5000.0,0.00021918,2]
[423331415,1780059040000,-463.0,0.00022,2]
[423331413,1780059040000,-456.0,0.00022,2]
[423331414,1780059040000,-2743.0,0.00022,2]
[423331406,1780059040000,-744.0,0.00022,2]
[423331409,1780059040000,-403.0,0.00022,2]
[423331412,1780059040000,-163.0,0.00022,2]
[423331443,1780059040000,-4024.21240137,0.00023361,7]
[423331447,1780059040000,-4024.21240137,0.00023479,7]
[423331454,1780059040000,-4024.21240137,0.00023676,14]
[423331478,1780059040000,-745.62,0.00024658,6]
[423331474,1780059040000,-1225.0,0.00024041,2]
[423331477,1780059040000,-1891.9,0.00024324,2]
[423331481,1780059040000,-152.0,0.000249,5]
[423331484,1780059040000,-250.0,0.00025,2]
[423331483,1780059040000,-1400.52537883,0.00025,2]
[423331492,1780059040000,-200.0,0.00025,10]
[423331487,1780059040000,-375.0,0.00025,2]
[423331485,1780059040000,-598.0,0.00025,2]
[423331488,1780059040000,-513.0,0.00025,2]
[423331489,1780059040000,-407.0,0.00025,2]
[423331486,1780059040000,-754.0,0.00025,2]
[423331490,1780059040000,-786.0,0.00025,2]
[423331482,1780059040000,-341.45,0.00024928,7]
[423331491,1780059040000,-326.0,0.00025,2]
[423331494,1780059040000,-456.0,0.00025,2]
[423331500,1780059040000,-2452.44,0.00025337,7]
[423331503,1780059040000,-250.0,0.00026,2]
[423331501,1780059040000,-152.0,0.0002558,6]
[423331502,1780059040000,-847.0,0.00025637,2]
[423331495,1780059040000,-2743.0,0.00025,2]
[423331453,1780059040000,-4024.21240137,0.00023637,14]
[423331493,1780059040000,-175.0,0.00025,2]
[423331497,1780059040000,-500.0,0.00025038,14]
[423331499,1780059040000,-300.0,0.000251,10]
[423331498,1780059040000,-847.0,0.00025082,2]
[423331505,1780059040000,-847.0,0.00026192,3]
[423331506,1780059040000,-2000.0,0.00026234,2]
[423331504,1780059040000,-500.0,0.00026,2]
[423331473,1780059040000,-1272.0,0.00024041,2]
[423331475,1780059040000,-150.0,0.00024041,2]
[423331496,1780059040000,-480.70812642,0.00025,2]
[423331476,1780059040000,-152.0,0.00024219,4]
[423331444,1780059040000,-4024.21240137,0.00023401,7]
[423331479,1780059040000,-191.8,0.00024658,2]
[423331446,1780059040000,-4024.21240137,0.0002344,7]
[423331442,1780059040000,-4024.21240137,0.00023322,7]
[423331449,1780059040000,-152.0,0.00023539,3]
[423331448,1780059040000,-4024.21240137,0.00023519,14]
[423331452,1780059040000,-4024.21240137,0.00023598,14]
[423331451,1780059040000,-4024.21240137,0.00023558,14]
[423331450,1780059040000,-2452.44,0.00023558,2]
[423331455,1780059040000,-4024.21240137,0.00023716,14]
[423331460,1780059040000,-588.0,0.00024,2]
[423331461,1780059040000,-744.0,0.00024,2]
[423331457,1780059040000,-4024.21240137,0.00023795,14]
[423331458,1780059040000,-4024.21240137,0.00023834,14]
[423331445,1780059040000,-2000.0,0.00023431,2]
[423331465,1780059040000,-771.0,0.00024,2]
[423331472,1780059040000,-1356.0,0.00024041,2]
[423331459,1780059040000,-481.77668729,0.00023908,2]
[423331469,1780059040000,-2743.0,0.00024,2]
[423331470,1780059040000,-463.0,0.00024,2]
[423331463,1780059040000,-499.0,0.00024,2]
[423331480,1780059040000,-1000.0,0.00024658,2]
[423331467,1780059040000,-163.0,0.00024,2]
[423331462,1780059040000,-365.0,0.00024,2]
[423331468,1780059040000,-456.0,0.00024,2]
[423331466,1780059040000,-313.0,0.00024,2]
[423331464,1780059040000,-403.0,0.00024,2]
[423331471,1780059040000,-3549.0,0.00024041,2]
[423331456,1780059040000,-4024.21240137,0.00023755,14]
[423331534,1780059041000,-3062.76,0.0002755,30]
[423331535,1780059041000,-321.9,0.0002755,2]
[423331530,1780059041000,-369.96,0.000274,7]
[423331538,1780059041000,-1326.35,0.0002755,30]
[423331540,1780059041000,-3076.25,0.0002755,30]
[423331528,1780059041000,-300.0,0.00027397,2]
[423331539,1780059041000,-3062.84,0.0002755,30]
[423331542,1780059041000,-321.9,0.0002758,7]
[423331541,1780059041000,-321.79,0.0002755,2]
[423331537,1780059041000,-1326.38,0.0002755,30]
[423331546,1780059041000,-152.0,0.00027621,9]
[423331545,1780059041000,-321.79,0.00027611,30]
[423331544,1780059041000,-321.9,0.00027611,30]
[423331547,1780059041000,-321.9,0.00027641,2]
[423331548,1780059041000,-321.79,0.00027641,2]
[423331550,1780059041000,-321.79,0.00027672,7]
[423331560,1780059041000,-321.9,0.00027733,2]
[423331549,1780059041000,-321.9,0.00027672,7]
[423331551,1780059041000,-321.9,0.00027702,30]
[423331532,1780059041000,-1799.0,0.00027507,2]
[423331553,1780059041000,-3062.76,0.00027711,7]
[423331543,1780059041000,-321.79,0.0002758,7]
[423331533,1780059041000,-150.0,0.00027521,2]
[423331526,1780059041000,-745.62,0.00027397,15]
[423331536,1780059041000,-3078.43,0.0002755,30]
[423331554,1780059041000,-3078.43,0.00027711,7]
[423331507,1780059041000,-152.0,0.0002626,7]
[423331509,1780059041000,-481.77668729,0.00026307,2]
[423331510,1780059041000,-2951.16994861,0.00026595,2]
[423331512,1780059041000,-150.0,0.00026666,2]
[423331513,1780059041000,-150.0,0.00026666,2]
[423331508,1780059041000,-1891.9,0.00026296,2]
[423331511,1780059041000,-150.0,0.00026666,2]
[423331514,1780059041000,-847.0,0.00026746,3]
[423331516,1780059041000,-3549.0,0.00027041,2]
[423331531,1780059041000,-658.07,0.000274,7]
[423331515,1780059041000,-152.0,0.00026941,8]
[423331517,1780059041000,-1356.0,0.00027041,2]
[423331519,1780059041000,-1225.0,0.00027041,2]
[423331522,1780059041000,-197.29921359,0.00027297,2]
[423331520,1780059041000,-2452.44,0.00027116,7]
[423331523,1780059041000,-847.0,0.00027301,4]
[423331521,1780059041000,-720.51,0.000272,14]
[423331525,1780059041000,-1500.0,0.00027397,2]
[423331524,1780059041000,-2235.45,0.00027397,2]
[423331527,1780059041000,-1000.0,0.00027397,20]
[423331529,1780059041000,-191.8,0.00027397,2]
[423331518,1780059041000,-1272.0,0.00027041,2]
[423331552,1780059041000,-321.79,0.00027702,30]
[423331571,1780059041000,-847.0,0.00027856,4]
[423331559,1780059041000,-3076.25,0.00027711,7]
[423331589,1780059041000,-250.0,0.00028,2]
[423331585,1780059041000,-321.9,0.00027977,30]
[423331588,1780059041000,-369.96,0.00028,7]
[423331587,1780059041000,-1097.43,0.0002799,5]
[423331590,1780059041000,-658.07,0.00028,7]
[423331593,1780059041000,-321.79,0.00028007,2]
[423331594,1780059041000,-3062.76,0.00028033,30]
[423331591,1780059041000,-250.0,0.00028,2]
[423331592,1780059041000,-321.9,0.00028007,2]
[423331602,1780059041000,-321.9,0.00028068,30]
[423331598,1780059041000,-3062.84,0.00028033,30]
[423331605,1780059041000,-321.9,0.00028099,2]
[423331597,1780059041000,-1326.35,0.00028033,30]
[423331604,1780059041000,-1000.0,0.00028082,3]
[423331603,1780059041000,-321.79,0.00028068,30]
[423331595,1780059041000,-3078.43,0.00028033,30]
[423331601,1780059041000,-321.79,0.00028038,7]
[423331600,1780059041000,-321.9,0.00028038,7]
[423331599,1780059041000,-3076.25,0.00028033,30]
[423331606,1780059041000,-321.79,0.00028099,2]
[423331557,1780059041000,-1326.35,0.00027711,7]
[423331586,1780059041000,-321.79,0.00027977,30]
[423331584,1780059041000,-321.79,0.00027946,7]
[423331596,1780059041000,-1326.38,0.00028033,30]
[423331581,1780059041000,-321.9,0.00027916,2]
[423331556,1780059041000,-1326.38,0.00027711,7]
[423331583,1780059041000,-321.9,0.00027946,7]
[423331558,1780059041000,-3062.84,0.00027711,7]
[423331561,1780059041000,-321.79,0.00027733,2]
[423331564,1780059041000,-321.9,0.00027794,30]
[423331563,1780059041000,-321.79,0.00027763,7]
[423331562,1780059041000,-321.9,0.00027763,7]
[423331566,1780059041000,-200.0,0.00027809,2]
[423331570,1780059041000,-321.79,0.00027855,7]
[423331565,1780059041000,-321.79,0.00027794,30]
[423331568,1780059041000,-321.79,0.00027824,2]
[423331569,1780059041000,-321.9,0.00027855,7]
[423331567,1780059041000,-321.9,0.00027824,2]
[423331574,1780059041000,-3078.43,0.00027872,2]
[423331573,1780059041000,-3062.76,0.00027872,2]
[423331577,1780059041000,-3062.84,0.00027872,2]
[423331576,1780059041000,-1326.35,0.00027872,2]
[423331578,1780059041000,-3076.25,0.00027872,2]
[423331575,1780059041000,-1326.38,0.00027872,2]
[423331579,1780059041000,-321.9,0.00027885,30]
[423331572,1780059041000,-341.45,0.00027856,7]
[423331580,1780059041000,-321.79,0.00027885,30]
[423331582,1780059041000,-321.79,0.00027916,2]
[423331635,1780059042000,-183.51684417,0.0002856,7]
[423331651,1780059042000,-658.07,0.000287,7]
[423331653,1780059042000,-481.77668729,0.00028705,2]
[423331649,1780059042000,-369.96,0.000287,7]
[423331640,1780059042000,-200.0,0.000286,2]
[423331637,1780059042000,-150.24780933,0.0002856,7]
[423331634,1780059042000,-187.79410907,0.0002856,2]
[423331636,1780059042000,-165.58963732,0.0002856,7]
[423331641,1780059042000,-174.50391216,0.0002861,7]
[423331638,1780059042000,-237.78527283,0.0002856,7]
[423331645,1780059042000,-208.00840619,0.0002861,7]
[423331665,1780059042000,-2000.0,0.00028971,2]
[423331642,1780059042000,-162.26136259,0.0002861,7]
[423331643,1780059042000,-205.82271562,0.0002861,7]
[423331647,1780059042000,-167.15468137,0.0002861,7]
[423331657,1780059042000,-216.36883392,0.00028767,2]
[423331655,1780059042000,-500.0,0.00028767,2]
[423331660,1780059042000,-150.0,0.00028855,2]
[423331662,1780059042000,-1000.0,0.0002893,19]
[423331663,1780059042000,-847.0,0.00028965,6]
[423331664,1780059042000,-2000.0,0.00028971,2]
[423331659,1780059042000,-150.0,0.00028855,2]
[423331639,1780059042000,-1000.0,0.00028573,18]
[423331644,1780059042000,-268.2173767,0.0002861,7]
[423331629,1780059042000,-272.37852904,0.0002853,7]
[423331609,1780059042000,-321.87,0.0002813,7]
[423331632,1780059042000,-177.87339654,0.0002856,7]
[423331608,1780059042000,-322.04,0.0002813,7]
[423331610,1780059042000,-3062.76,0.00028194,7]
[423331607,1780059042000,-2151.0,0.000281,7]
[423331611,1780059042000,-3078.43,0.00028194,7]
[423331612,1780059042000,-1326.38,0.00028194,7]
[423331615,1780059042000,-3076.25,0.00028194,7]
[423331616,1780059042000,-1000.0,0.00028215,17]
[423331614,1780059042000,-3062.84,0.00028194,7]
[423331613,1780059042000,-1326.35,0.00028194,7]
[423331618,1780059042000,-150.0,0.00028255,2]
[423331617,1780059042000,-150.0,0.00028255,2]
[423331621,1780059042000,-3075.34,0.00028355,2]
[423331619,1780059042000,-1891.9,0.00028267,2]
[423331620,1780059042000,-152.0,0.00028301,10]
[423331624,1780059042000,-151.0,0.00028397,7]
[423331625,1780059042000,-847.0,0.00028411,5]
[423331627,1780059042000,-600.75376356,0.0002851,2]
[423331623,1780059042000,-3076.25,0.00028355,2]
[423331622,1780059042000,-3078.43,0.00028355,2]
[423331626,1780059042000,-168.09,0.00028493,2]
[423331628,1780059042000,-16611.65479481,0.00028513,2]
[423331631,1780059042000,-171.38536683,0.0002856,7]
[423331630,1780059042000,-165.81980513,0.0002856,7]
[423331633,1780059042000,-228.05786311,0.0002856,7]
[423331661,1780059042000,-150.0,0.00028897,2]
[423331666,1780059042000,-2000.0,0.00028971,2]
[423331669,1780059042000,-188.44606372,0.00028971,2]
[423331697,1780059042000,-1008.48,0.00029,30]
[423331698,1780059042000,-1008.48,0.00029,30]
[423331709,1780059042000,-200.0,0.00029391,2]
[423331706,1780059042000,-2452.44,0.00029,7]
[423331703,1780059042000,-1008.48,0.00029,30]
[423331708,1780059042000,-333.6714097,0.00029212,2]
[423331701,1780059042000,-1008.48,0.00029,30]
[423331700,1780059042000,-1008.48,0.00029,30]
[423331707,1780059042000,-2000.0,0.00029037,2]
[423331699,1780059042000,-1008.48,0.00029,30]
[423331710,1780059042000,-309.0,0.000294,2]
[423331696,1780059042000,-1008.48,0.00029,30]
[423331702,1780059042000,-1008.48,0.00029,30]
[423331705,1780059042000,-6345.83,0.00029,2]
[423331715,1780059042000,-525.68621483,0.000295,37]
[423331713,1780059042000,-886.0,0.000294,2]
[423331711,1780059042000,-1000.0,0.000294,2]
[423331712,1780059042000,-315.0,0.000294,2]
[423331714,1780059042000,-181.77332595,0.00029431,2]
[423331720,1780059042000,-550.0,0.00029509,2]
[423331719,1780059042000,-1242.74626647,0.000295,37]
[423331716,1780059042000,-525.68621483,0.000295,37]
[423331717,1780059042000,-1120.45196748,0.000295,37]
[423331667,1780059042000,-2000.0,0.00028971,2]
[423331704,1780059042000,-157.0,0.00029,2]
[423331691,1780059042000,-1008.48,0.00029,30]
[423331718,1780059042000,-1120.45196748,0.000295,37]
[423331695,1780059042000,-1008.48,0.00029,30]
[423331694,1780059042000,-1008.48,0.00029,30]
[423331668,1780059042000,-408.06,0.00028971,2]
[423331676,1780059042000,-2000.0,0.00029,2]
[423331670,1780059042000,-152.0,0.00028982,11]
[423331677,1780059042000,-1503.36,0.00029,2]
[423331673,1780059042000,-599.87,0.00029,2]
[423331675,1780059042000,-152.62,0.00029,2]
[423331672,1780059042000,-599.87,0.00029,2]
[423331674,1780059042000,-599.87,0.00029,2]
[423331687,1780059042000,-1008.48,0.00029,30]
[423331686,1780059042000,-1000.0,0.00029,2]
[423331680,1780059042000,-250.0,0.00029,2]
[423331671,1780059042000,-599.87,0.00029,2]
[423331678,1780059042000,-2270.46,0.00029,2]
[423331679,1780059042000,-152.62,0.00029,2]
[423331681,1780059042000,-2151.0,0.00029,7]
[423331683,1780059042000,-152.62,0.00029,2]
[423331682,1780059042000,-152.62,0.00029,2]
[423331684,1780059042000,-1200.0,0.00029,2]
[423331693,1780059042000,-1008.48,0.00029,30]
[423331690,1780059042000,-1008.48,0.00029,30]
[423331688,1780059042000,-1008.48,0.00029,30]
[423331689,1780059042000,-1008.48,0.00029,30]
[423331692,1780059042000,-1008.48,0.00029,30]
[423331685,1780059042000,-929.99999999,0.00029,2]
[423331755,1780059043000,-250.0,0.00029784,30]
[423331757,1780059043000,-771.0,0.00029784,30]
[423331754,1780059043000,-250.0,0.00029784,30]
[423331748,1780059043000,-499.0,0.00029784,30]
[423331745,1780059043000,-588.0,0.00029784,30]
[423331751,1780059043000,-285.0,0.00029784,30]
[423331747,1780059043000,-365.0,0.00029784,30]
[423331750,1780059043000,-150.0,0.00029784,30]
[423331752,1780059043000,-250.0,0.00029784,30]
[423331758,1780059043000,-313.0,0.00029784,30]
[423331764,1780059043000,-500.0,0.00029839,14]
[423331759,1780059043000,-163.0,0.00029784,30]
[423331760,1780059043000,-456.0,0.00029784,30]
[423331766,1780059043000,-150.0,0.00029861,7]
[423331762,1780059043000,-463.0,0.00029784,30]
[423331761,1780059043000,-2743.0,0.00029784,30]
[423331775,1780059043000,-375.58821813,0.00029897,2]
[423331777,1780059043000,-331.17927465,0.00029897,7]
[423331768,1780059043000,-544.75705807,0.00029865,7]
[423331779,1780059043000,-150.0,0.00029948,7]
[423331770,1780059043000,-162.39348619,0.00029897,7]
[423331746,1780059043000,-744.0,0.00029784,30]
[423331756,1780059043000,-266.0,0.00029784,30]
[423331753,1780059043000,-250.0,0.00029784,30]
[423331735,1780059043000,-150.0,0.00029688,7]
[423331744,1780059043000,-150.0,0.00029774,7]
[423331721,1780059043000,-550.0,0.00029509,2]
[423331722,1780059043000,-550.0,0.00029509,2]
[423331723,1780059043000,-550.0,0.00029509,2]
[423331724,1780059043000,-550.0,0.00029509,2]
[423331730,1780059043000,-847.0,0.0002952,6]
[423331731,1780059043000,-1000.0,0.00029644,21]
[423331725,1780059043000,-550.0,0.00029509,2]
[423331726,1780059043000,-550.0,0.00029509,2]
[423331729,1780059043000,-1000.0,0.00029519,6]
[423331728,1780059043000,-665.0,0.00029509,2]
[423331727,1780059043000,-550.0,0.00029509,2]
[423331778,1780059043000,-300.49561866,0.00029897,7]
[423331733,1780059043000,-6440.47,0.00029679,2]
[423331743,1780059043000,-2951.16994861,0.00029747,2]
[423331736,1780059043000,-150.0,0.00029688,7]
[423331741,1780059043000,-150.0,0.00029688,7]
[423331737,1780059043000,-150.0,0.00029688,7]
[423331732,1780059043000,-152.0,0.00029662,12]
[423331734,1780059043000,-297.17334919,0.00029679,2]
[423331739,1780059043000,-150.0,0.00029688,7]
[423331742,1780059043000,-1000.0,0.000297,7]